fUSD/lending_fUSD_20260615
["ID","MTS","AMOUNT","RATE_DAILY","PERIOD"]
[425102689,1781500237000,-500.0,0.00013099,2]
[425102677,1781500237000,-500.0,0.00013099,2]
[425102732,1781500238000,-398.00204599,0.00013099,2]
[425102739,1781500238000,-54.09465588,0.00013099,2]
[425102731,1781500238000,-500.0,0.00013099,2]
[425102723,1781500238000,-139.42767855,0.00013099,2]
[425102721,1781500238000,-500.0,0.00013099,2]
[425102725,1781500238000,-500.0,0.00013099,2]
[425102728,1781500238000,-500.0,0.00013099,2]
[425102730,1781500238000,-148.42767855,0.00013099,2]
[425102729,1781500238000,-351.57232145,0.00013099,2]
[425102733,1781500238000,-101.99795401,0.00013099,2]
[425102755,1781500238000,-257.37178485,0.00013099,2]
[425102735,1781500238000,-681.83408957,0.00013099,2]
[425102737,1781500238000,-681.83408957,0.00013099,2]
[425102738,1781500238000,-681.83408957,0.00013099,2]
[425102736,1781500238000,-681.83408957,0.00013099,2]
[425102741,1781500238000,-522.26056631,0.00013099,2]
[425102742,1781500238000,-159.57352326,0.00013099,2]
[425102743,1781500238000,-340.42647674,0.00013099,2]
[425102744,1781500238000,-341.40761283,0.00013099,2]
[425102722,1781500238000,-360.57232145,0.00013099,2]
[425102745,1781500238000,-681.83408957,0.00013099,2]
[425102734,1781500238000,-500.0,0.00013099,2]
[425102727,1781500238000,-500.0,0.00013099,2]
[425102713,1781500238000,-500.0,0.00013099,2]
[425102724,1781500238000,-500.0,0.00013099,2]
[425102701,1781500238000,-500.0,0.00013099,2]
[425102700,1781500238000,-500.0,0.00013099,2]
[425102699,1781500238000,-546.2022099,0.00013099,2]
[425102702,1781500238000,-500.0,0.00013099,2]
[425102707,1781500238000,-234.2866721,0.00013099,2]
[425102710,1781500238000,-500.0,0.00013099,2]
[425102709,1781500238000,-500.0,0.00013099,2]
[425102708,1781500238000,-500.0,0.00013099,2]
[425102711,1781500238000,-500.0,0.00013099,2]
[425102704,1781500238000,-498.94745927,0.00013099,2]
[425102726,1781500238000,-500.0,0.00013099,2]
[425102703,1781500238000,-1.05254073,0.00013099,2]
[425102706,1781500238000,-265.7133279,0.00013099,2]
[425102712,1781500238000,-500.0,0.00013099,2]
[425102746,1781500238000,-681.83408957,0.00013099,2]
[425102714,1781500238000,-500.0,0.00013099,2]
[425102719,1781500238000,-106.4794684,0.00013099,2]
[425102716,1781500238000,-500.0,0.00013099,2]
[425102715,1781500238000,-500.0,0.00013099,2]
[425102718,1781500238000,-345.56839067,0.00013099,2]
[425102717,1781500238000,-154.43160933,0.00013099,2]
[425102720,1781500238000,-393.5205316,0.00013099,2]
[425102705,1781500238000,-500.0,0.00013099,2]
[425102748,1781500238000,-681.83408957,0.00013099,2]
[425102740,1781500238000,-627.73943369,0.00013099,2]
[425102754,1781500238000,-681.83408957,0.00013099,2]
[425102778,1781500238000,-500.0,0.00013698,2]
[425102777,1781500238000,-500.0,0.00013698,2]
[425102776,1781500238000,-500.0,0.00013698,2]
[425102781,1781500238000,-500.0,0.00013698,2]
[425102783,1781500238000,-500.0,0.00013698,2]
[425102782,1781500238000,-500.0,0.00013698,2]
[425102784,1781500238000,-500.0,0.00013698,2]
[425102792,1781500238000,-500.0,0.00013698,2]
[425102789,1781500238000,-500.0,0.00013698,2]
[425102787,1781500238000,-500.0,0.00013698,2]
[425102774,1781500238000,-500.0,0.00013698,2]
[425102785,1781500238000,-500.0,0.00013698,2]
[425102786,1781500238000,-500.0,0.00013698,2]
[425102788,1781500238000,-500.0,0.00013698,2]
[425102790,1781500238000,-500.0,0.00013698,2]
[425102747,1781500238000,-681.83408957,0.00013099,2]
[425102793,1781500238000,-500.0,0.00013698,2]
[425102795,1781500238000,-500.0,0.00013698,2]
[425102797,1781500238000,-491.45328381,0.00013698,2]
[425102799,1781500238000,-24.3398248,0.00013698,2]
[425102796,1781500238000,-8.54671619,0.00013698,2]
[425102798,1781500238000,-500.0,0.00013698,2]
[425102791,1781500238000,-500.0,0.00013698,2]
[425102773,1781500238000,-500.0,0.00013698,2]
[425102794,1781500238000,-500.0,0.00013698,2]
[425102772,1781500238000,-500.0,0.00013698,2]
[425102771,1781500238000,-150.0,0.00013697,2]
[425102750,1781500238000,-681.83408957,0.00013099,2]
[425102752,1781500238000,-681.83408957,0.00013099,2]
[425102749,1781500238000,-681.83408957,0.00013099,2]
[425102753,1781500238000,-681.83408957,0.00013099,2]
[425102756,1781500238000,-500.0,0.00013099,2]
[425102759,1781500238000,-216.09656886,0.00013099,2]
[425102760,1781500238000,-500.0,0.00013099,2]
[425102758,1781500238000,-566.215373,0.00013099,2]
[425102761,1781500238000,-2000.0,0.000131,2]
[425102757,1781500238000,-500.0,0.00013099,2]
[425102751,1781500238000,-681.83408957,0.00013099,2]
[425102762,1781500238000,-151.0,0.000131,2]
[425102763,1781500238000,-260.56,0.00013251,2]
[425102770,1781500238000,-824.71449065,0.00013642,2]
[425102775,1781500238000,-500.0,0.00013698,2]
[425102780,1781500238000,-500.0,0.00013698,2]
[425102779,1781500238000,-250.0080347,0.00013698,2]
[425102768,1781500238000,-260.56,0.00013582,2]
[425102767,1781500238000,-309.89220436,0.00013539,2]
[425102765,1781500238000,-200.08,0.00013346,2]
[425102764,1781500238000,-824.71449065,0.00013327,2]
[425102766,1781500238000,-156.18123839,0.00013488,2]
[425102769,1781500238000,-166.66,0.00013615,2]
[425103006,1781500240000,-690.26,0.00013698,2]
[425103008,1781500240000,-690.26,0.00013698,2]
[425103010,1781500240000,-690.26,0.00013698,2]
[425103026,1781500240000,-824.71449065,0.00013956,2]
[425103024,1781500240000,-260.56,0.00013913,2]
[425103016,1781500240000,-690.26,0.00013698,2]
[425103014,1781500240000,-690.26,0.00013698,2]
[425103021,1781500240000,-166.66,0.00013901,2]
[425103018,1781500240000,-690.26,0.00013698,2]
[425103019,1781500240000,-400.77261403,0.00013799,2]
[425103028,1781500240000,-13283.32529836,0.0001399,2]
[425103029,1781500240000,-250.0,0.00014,2]
[425103031,1781500240000,-166.66,0.00014188,2]
[425103033,1781500240000,-260.56,0.00014245,2]
[425103004,1781500240000,-690.26,0.00013698,2]
[425103012,1781500240000,-690.26,0.00013698,2]
[425103035,1781500240000,-824.71449065,0.00014271,2]
[425102969,1781500240000,-500.0,0.00012792,2]
[425102998,1781500240000,-690.26,0.00013698,2]
[425102973,1781500240000,-513.94820383,0.00013698,2]
[425102971,1781500240000,-475.6601752,0.00013698,2]
[425102977,1781500240000,-123.22750297,0.00013698,2]
[425102975,1781500240000,-500.0,0.00013698,2]
[425102965,1781500240000,-354.0347142,0.00012792,2]
[425102967,1781500240000,-145.9652858,0.00012792,2]
[425102982,1781500240000,-500.0,0.00013698,2]
[425102984,1781500240000,-500.0,0.00013698,2]
[425102980,1781500240000,-376.77249703,0.00013698,2]
[425102994,1781500240000,-690.26,0.00013698,2]
[425102992,1781500240000,-690.26,0.00013698,2]
[425102988,1781500240000,-251.52702595,0.00013698,2]
[425103000,1781500240000,-690.26,0.00013698,2]
[425102990,1781500240000,-690.26,0.00013698,2]
[425102986,1781500240000,-500.0,0.00013698,2]
[425103002,1781500240000,-690.26,0.00013698,2]
[425103041,1781500240000,-654.44,0.00014492,2]
[425102996,1781500240000,-690.26,0.00013698,2]
[425103045,1781500240000,-824.71449065,0.00014585,2]
[425103090,1781500240000,-3000.0,0.00014999,2]
[425103096,1781500240000,-500.0,0.00014999,2]
[425103098,1781500240000,-500.0,0.00014999,2]
[425103081,1781500240000,-500.0,0.00014999,2]
[425103100,1781500240000,-500.0,0.00014999,2]
[425103088,1781500240000,-690.26,0.00014999,2]
[425103086,1781500240000,-690.26,0.00014999,2]
[425103092,1781500240000,-500.0,0.00014999,2]
[425103084,1781500240000,-289.56830426,0.00014999,2]
[425103106,1781500240000,-500.0,0.00014999,2]
[425103116,1781500240000,-500.0,0.00014999,2]
[425103108,1781500240000,-500.0,0.00014999,2]
[425103112,1781500240000,-500.0,0.00014999,2]
[425103114,1781500240000,-500.0,0.00014999,2]
[425103110,1781500240000,-500.0,0.00014999,2]
[425103039,1781500240000,-166.66,0.00014475,2]
[425103104,1781500240000,-500.0,0.00014999,2]
[425103080,1781500240000,-500.0,0.00014999,2]
[425103102,1781500240000,-500.0,0.00014999,2]
[425103078,1781500240000,-500.0,0.00014999,2]
[425103094,1781500240000,-500.0,0.00014999,2]
[425103043,1781500240000,-260.56,0.00014576,2]
[425103051,1781500240000,-171.7263481,0.00014653,2]
[425103049,1781500240000,-184.03,0.00014653,2]
[425103053,1781500240000,-166.66,0.00014761,2]
[425103065,1781500240000,-10000.0,0.000149,2]
[425103055,1781500240000,-157.37535454,0.000149,2]
[425103067,1781500240000,-25000.0,0.000149,3]
[425103047,1781500240000,-151.0,0.0001463,2]
[425103059,1781500240000,-400.77261403,0.000149,2]
[425103073,1781500240000,-57266.05457548,0.00014989,2]
[425103057,1781500240000,-25000.0,0.000149,3]
[425103069,1781500240000,-23581.20402528,0.000149,2]
[425103063,1781500240000,-1766.57460272,0.000149,2]
[425103076,1781500240000,-500.0,0.00014999,2]
[425103071,1781500240000,-315.15,0.00014986,2]
[425103061,1781500240000,-824.71449065,0.000149,2]
[425103156,1781500241000,-500.0,0.00014999,2]
[425103148,1781500241000,-500.0,0.00014999,2]
[425103144,1781500241000,-500.0,0.00014999,2]
[425103152,1781500241000,-500.0,0.00014999,2]
[425103154,1781500241000,-500.0,0.00014999,2]
[425103168,1781500241000,-500.0,0.00014999,2]
[425103142,1781500241000,-500.0,0.00014999,2]
[425103166,1781500241000,-500.0,0.00014999,2]
[425103138,1781500241000,-500.0,0.00014999,2]
[425103146,1781500241000,-500.0,0.00014999,2]
[425103136,1781500241000,-500.0,0.00014999,2]
[425103121,1781500241000,-500.0,0.00014999,2]
[425103132,1781500241000,-500.0,0.00014999,2]
[425103134,1781500241000,-500.0,0.00014999,2]
[425103130,1781500241000,-500.0,0.00014999,2]
[425103129,1781500241000,-500.0,0.00014999,2]
[425103127,1781500241000,-500.0,0.00014999,2]
[425103123,1781500241000,-500.0,0.00014999,2]
[425103125,1781500241000,-500.0,0.00014999,2]
[425103120,1781500241000,-500.0,0.00014999,2]
[425103118,1781500241000,-500.0,0.00014999,2]
[425103158,1781500241000,-500.0,0.00014999,2]
[425103140,1781500241000,-500.0,0.00014999,2]
[425103162,1781500241000,-500.0,0.00014999,2]
[425103150,1781500241000,-500.0,0.00014999,2]
[425103170,1781500241000,-500.0,0.00014999,2]
[425103160,1781500241000,-500.0,0.00014999,2]
[425103251,1781500241000,-1561.03540696,0.00015,2]
[425103246,1781500241000,-3153.88746324,0.00015,2]
[425103244,1781500241000,-336.22096291,0.00015,2]
[425103242,1781500241000,-564.0886184,0.00015,2]
[425103229,1781500241000,-554.93180101,0.00015,2]
[425103224,1781500241000,-300.0,0.00014999,2]
[425103226,1781500241000,-11873037.27121478,0.00015,2]
[425103222,1781500241000,-305.0662819,0.00014999,2]
[425103220,1781500241000,-300.0,0.00014999,2]
[425103218,1781500241000,-300.0,0.00014999,2]
[425103240,1781500241000,-31203.12323124,0.00015,2]
[425103215,1781500241000,-429.88056922,0.00014999,2]
[425103253,1781500241000,-1094.0,0.00015,2]
[425103209,1781500241000,-500.0,0.00014999,2]
[425103211,1781500241000,-500.0,0.00014999,2]
[425103207,1781500241000,-500.0,0.00014999,2]
[425103196,1781500241000,-500.0,0.00014999,2]
[425103198,1781500241000,-500.0,0.00014999,2]
[425103205,1781500241000,-500.0,0.00014999,2]
[425103201,1781500241000,-500.0,0.00014999,2]
[425103164,1781500241000,-500.0,0.00014999,2]
[425103203,1781500241000,-500.0,0.00014999,2]
[425103213,1781500241000,-500.0,0.00014999,2]
[425103354,1781500242000,-598.82951395,0.00012299,2]
[425103356,1781500242000,-1687835.98449239,0.00015,2]
[425103355,1781500242000,-159.39086606,0.0001499,2]
[425103357,1781500242000,-592.84715655,0.00011993,2]
[425103359,1781500242000,-65587.01443885,0.00015,2]
[425103360,1781500242000,-14461.37476591,0.00015,2]
[425103361,1781500242000,-1032.08000892,0.00015,2]
[425103358,1781500242000,-298.77704615,0.00013698,2]
[425103371,1781500243000,-1666.90688967,0.00015,2]
[425103370,1781500243000,-11104.32943402,0.00015,2]
[425103362,1781500243000,-3302.56959814,0.00015,2]
[425103410,1781500244000,-1415.58967295,0.00015,2]
[425103409,1781500244000,-2074.89849894,0.00015,2]
[425103408,1781500244000,-4577.04349888,0.00015,2]
[425103407,1781500244000,-150.0,0.00012164,2]
[425103412,1781500245000,-3074.88970174,0.00015,2]
[425103411,1781500245000,-714.63879789,0.00015,2]
[425103413,1781500246000,-7298.38962212,0.00013856,2]
[425103414,1781500246000,-932.0,0.00013856,2]
[425103415,1781500246000,-4490.89423256,0.00013856,2]
[425103419,1781500246000,-548.15193719,0.00013856,2]
[425103417,1781500246000,-765.56801084,0.00013856,2]
[425103416,1781500246000,-874.45115733,0.00013856,2]
[425103418,1781500246000,-824.63,0.00013856,2]
[425103422,1781500267000,643.87071947,0.0003013,120]
[425103423,1781500284000,-1555.5,0.00013856,2]
[425103424,1781500304000,-267.5583358,0.00012792,2]
[425103427,1781500351000,-152.0,0.00012792,2]
[425103432,1781500405000,-373.01633621,0.00012436,2]
[425103433,1781500459000,-151.0,0.00012436,2]
[425103434,1781500512000,-151.0,0.00012436,2]
[425103435,1781500565000,-151.0,0.00012436,2]
[425103436,1781500618000,-150.0,0.00012436,2]
[425103437,1781500672000,-152.0,0.0001237,2]
[425103440,1781500754000,-258.18170949,0.00012006,2]
[425103439,1781500754000,-200.0,0.00012006,2]
[425103438,1781500754000,-358.37829051,0.00012006,2]
[425103441,1781500821000,22.97463479,0.00012007,2]
[425103445,1781500864000,-8626.14,0.0001198,2]
[425103446,1781500917000,-166.66,0.00011329,2]
[425103447,1781500971000,-166.66,0.00011568,2]
[425103453,1781501025000,-445.64,0.00011229,2]
[425103454,1781501046000,-54.36,0.00011229,2]
[425103455,1781501093000,-471.53445998,0.00011374,2]
[425103456,1781501146000,-300.0,0.00011518,2]
[425103457,1781501200000,-150.0,0.00011647,2]
[425103459,1781501254000,-300.0,0.00011777,2]
[425103461,1781501259000,-300.0,0.00011777,2]
[425103462,1781501259000,-319.68685379,0.00011777,2]
[425103460,1781501259000,-150.0,0.00011607,2]
[425103464,1781501259000,-209.82,0.00011831,2]
[425103465,1781501259000,-452.41039644,0.00011871,2]
[425103463,1781501259000,-166.66,0.00011806,2]
[425103469,1781501307000,-200.0,0.00011316,2]
[425103489,1781501350000,-704.74960356,0.00011871,2]
[425103485,1781501350000,-751.95,0.00011629,2]
[425103484,1781501350000,-212.5,0.00011593,2]
[425103486,1781501350000,-216.09656886,0.00011779,2]
[425103488,1781501350000,-163.28917021,0.00011868,2]
[425103487,1781501350000,-163.28917021,0.00011868,2]
[425103492,1781501350000,-517.69009337,0.00011895,2]
[425103491,1781501350000,-500.0,0.00011895,2]
[425103493,1781501350000,-400.13519595,0.00011895,2]
[425103495,1781501350000,-500.0,0.00011895,2]
[425103490,1781501350000,-150.0,0.00011895,2]
[425103494,1781501350000,-315.70891182,0.00011895,2]
[425103496,1781501350000,-497.94313002,0.00011895,2]
[425103531,1781501431000,-151.0,0.00012436,2]
[425103522,1781501431000,-243.52,0.0001237,2]
[425103530,1781501431000,-151.0,0.00012436,2]
[425103521,1781501431000,-151.0,0.0001237,2]
[425103520,1781501431000,-152.0,0.0001237,2]
[425103516,1781501431000,-166.66,0.00012284,2]
[425103519,1781501431000,-151.0,0.0001237,2]
[425103518,1781501431000,-163.69,0.00012329,2]
[425103517,1781501431000,-167.6,0.00012329,2]
[425103515,1781501431000,-152.0,0.00012192,2]
[425103514,1781501431000,-151.0,0.0001215,2]
[425103526,1781501431000,-152.0,0.00012436,2]
[425103509,1781501431000,-152.0,0.0001215,2]
[425103512,1781501431000,-150.0,0.0001215,2]
[425103513,1781501431000,-151.0,0.0001215,2]
[425103510,1781501431000,-151.0,0.0001215,2]
[425103508,1781501431000,-151.0,0.0001215,2]
[425103502,1781501431000,-658.46,0.00011657,2]
[425103503,1781501431000,-5114.59,0.00011898,2]
[425103501,1781501431000,-3580.62,0.00011657,2]
[425103505,1781501431000,-127.02536521,0.00012007,2]
[425103504,1781501431000,-165.78,0.00011943,2]
[425103500,1781501431000,-200.0,0.00011637,2]
[425103506,1781501431000,-452.176458,0.00012007,2]
[425103507,1781501431000,-166.66,0.00012045,2]
[425103511,1781501431000,-151.0,0.0001215,2]
[425103528,1781501431000,-150.0,0.00012436,2]
[425103524,1781501431000,-151.0,0.00012436,2]
[425103525,1781501431000,-152.0,0.00012436,2]
[425103556,1781501431000,-1890.24312821,0.00012801,2]
[425103557,1781501431000,-300.0,0.00012801,2]
[425103555,1781501431000,-1033.10438911,0.00012798,2]
[425103552,1781501431000,-150.0,0.00012795,2]
[425103548,1781501431000,-580.62434415,0.00012492,2]
[425103550,1781501431000,-166.66,0.00012522,2]
[425103551,1781501431000,-151.0,0.00012795,2]
[425103554,1781501431000,-1115.19510719,0.00012798,2]
[425103553,1781501431000,-320.0,0.00012798,2]
[425103549,1781501431000,-186.47678224,0.00012492,2]
[425103527,1781501431000,-151.0,0.00012436,2]
[425103546,1781501431000,-500.0,0.00012492,2]
[425103545,1781501431000,-500.0,0.00012492,2]
[425103544,1781501431000,-194.39130091,0.00012492,2]
[425103547,1781501431000,-500.0,0.00012492,2]
[425103541,1781501431000,-500.0,0.00012492,2]
[425103529,1781501431000,-151.0,0.00012436,2]
[425103543,1781501431000,-500.0,0.00012492,2]
[425103534,1781501431000,-250.0,0.00012448,2]
[425103535,1781501431000,-1346.32,0.00012474,2]
[425103536,1781501431000,-1000.0,0.00012491,2]
[425103532,1781501431000,-151.0,0.00012436,2]
[425103538,1781501431000,-151.65134324,0.00012492,2]
[425103540,1781501431000,-500.0,0.00012492,2]
[425103539,1781501431000,-500.0,0.00012492,2]
[425103537,1781501431000,-150.0,0.00012491,2]
[425103542,1781501431000,-500.0,0.00012492,2]
[425103533,1781501431000,-150.0,0.00012436,2]
[425103523,1781501431000,-151.0,0.00012436,2]
[425103563,1781501432000,-154.36637288,0.00013207,2]
[425103558,1781501432000,-500.0,0.00012801,2]
[425103559,1781501432000,-160.0,0.00012828,2]
[425103560,1781501432000,-152.0,0.00012886,2]
[425103561,1781501432000,-250.0,0.00012954,2]
[425103564,1781501432000,-1268.40051473,0.00013207,2]
[425103566,1781501432000,-406.30786638,0.00013207,2]
[425103565,1781501432000,-3000.0,0.00013207,2]
[425103567,1781501432000,-198133.94677271,0.00013207,2]
[425103569,1781501432000,-4101.49039678,0.00013207,2]
[425103568,1781501432000,-32237.3452161,0.00013207,2]
[425103570,1781501432000,-124696.6236394,0.00013207,2]
[425103571,1781501432000,-1254.41808677,0.00013207,2]
[425103572,1781501432000,-2526.02134748,0.00013207,2]
[425103573,1781501432000,-907.13116191,0.00013207,2]
[425103574,1781501432000,-389.01559595,0.00013207,2]
[425103575,1781501432000,-944.41582422,0.00013207,2]
[425103562,1781501432000,-205.79262686,0.00013181,2]
[425103589,1781501437000,-500.0,0.00012766,2]
[425103591,1781501437000,-52651.57496922,0.00013207,2]
[425103590,1781501437000,-500.0,0.0001304,2]
[425103588,1781501437000,-500.0,0.00012492,2]
[425103592,1781501437000,-4934.61870003,0.00013207,2]
[425103595,1781501437000,-1920.88549741,0.00013207,2]
[425103594,1781501437000,-736.66604106,0.00013207,2]
[425103593,1781501437000,-32889.99999999,0.00013207,2]
[425103596,1781501438000,-177.61969447,0.00013207,2]
[425103644,1781501439000,-2541.00069865,0.00013207,2]
[425103643,1781501439000,-561.32,0.00013207,2]
[425103690,1781501440000,-164.51,0.00013837,2]
[425103671,1781501440000,-561.32,0.00013698,2]
[425103674,1781501440000,-500.0,0.00013698,2]
[425103670,1781501440000,-500.0,0.00013698,2]
[425103669,1781501440000,-332.01,0.00013698,2]
[425103673,1781501440000,-500.0,0.00013698,2]
[425103678,1781501440000,-500.0,0.00013698,2]
[425103680,1781501440000,-500.0,0.00013698,2]
[425103668,1781501440000,-500.0,0.00013698,2]
[425103681,1781501440000,-500.0,0.00013698,2]
[425103691,1781501440000,-150.0,0.00013856,7]
[425103679,1781501440000,-500.0,0.00013698,2]
[425103683,1781501440000,-3020.90607915,0.00013711,2]
[425103685,1781501440000,-1268.40051471,0.00013771,2]
[425103688,1781501440000,-185.34296276,0.00013797,2]
[425103684,1781501440000,-999.4623,0.00013756,2]
[425103689,1781501440000,-166.83520966,0.00013797,2]
[425103686,1781501440000,-500.0,0.00013797,2]
[425103687,1781501440000,-507.60896012,0.00013797,2]
[425103675,1781501440000,-500.0,0.00013698,2]
[425103697,1781501440000,-3020.90607915,0.00014008,2]
[425103692,1781501440000,-151.0,0.00013856,2]
[425103682,1781501440000,-200.0,0.00013699,2]
[425103667,1781501440000,-500.0,0.00013698,2]
[425103659,1781501440000,-500.0,0.00013698,2]
[425103676,1781501440000,-500.0,0.00013698,2]
[425103694,1781501440000,-3020.90607915,0.00013859,2]
[425103645,1781501440000,-1038395.90635785,0.00013207,2]
[425103647,1781501440000,-1268.40051471,0.00013395,2]
[425103648,1781501440000,-5896.0024,0.00013398,2]
[425103646,1781501440000,-1876.53,0.00013308,2]
[425103651,1781501440000,-6835.19797377,0.00013498,2]
[425103650,1781501440000,-2500.0,0.00013498,2]
[425103649,1781501440000,-33290.518,0.00013498,2]
[425103652,1781501440000,-317.86854086,0.00013562,2]
[425103654,1781501440000,-1268.40051471,0.00013583,2]
[425103677,1781501440000,-515.46565807,0.00013698,2]
[425103653,1781501440000,-3020.90607916,0.00013562,2]
[425103658,1781501440000,-1357.70560239,0.00013698,2]
[425103666,1781501440000,-500.0,0.00013698,2]
[425103657,1781501440000,-2000.0,0.0001366,2]
[425103660,1781501440000,-500.0,0.00013698,2]
[425103662,1781501440000,-500.0,0.00013698,2]
[425103661,1781501440000,-500.0,0.00013698,2]
[425103664,1781501440000,-500.0,0.00013698,2]
[425103665,1781501440000,-500.0,0.00013698,2]
[425103663,1781501440000,-500.0,0.00013698,2]
[425103672,1781501440000,-500.0,0.00013698,2]
[425103655,1781501440000,-500.0,0.00013597,2]
[425103693,1781501440000,-151.0,0.00013856,2]
[425103656,1781501440000,-500.0,0.00013597,2]
[425103696,1781501440000,-1268.40051471,0.00013959,2]
[425103720,1781501440000,-11327.89,0.00014504,2]
[425103723,1781501440000,-1268.40051471,0.00014524,2]
[425103728,1781501440000,-166.64608,0.00014685,2]
[425103738,1781501440000,-3020.90607915,0.00014751,2]
[425103727,1781501440000,-34735.5954,0.00014685,2]
[425103733,1781501440000,-246.616984,0.000147,2]
[425103732,1781501440000,-168.488576,0.000147,2]
[425103729,1781501440000,-377.575918,0.00014685,2]
[425103731,1781501440000,-214.817213,0.000147,2]
[425103730,1781501440000,-10000.0,0.000147,2]
[425103724,1781501440000,-3020.90607915,0.00014603,2]
[425103743,1781501440000,-2000.0,0.00014899,2]
[425103734,1781501440000,-194.216177,0.000147,2]
[425103736,1781501440000,-1268.40051471,0.00014712,2]
[425103735,1781501440000,-351.9514,0.000147,2]
[425103739,1781501440000,-317.904704,0.00014773,2]
[425103741,1781501440000,-218.43,0.00014867,2]
[425103746,1781501440000,-166.2465461,0.000149,2]
[425103740,1781501440000,-350.0,0.00014811,2]
[425103745,1781501440000,-154.36637287,0.000149,2]
[425103744,1781501440000,-3020.90607915,0.000149,2]
[425103742,1781501440000,-1097.94083855,0.00014885,2]
[425103737,1781501440000,-250.0636334,0.0001475,2]
[425103721,1781501440000,-24999.99,0.00014504,2]
[425103695,1781501440000,-243.52,0.00013916,2]
[425103722,1781501440000,-3021.28,0.00014504,2]
[425103698,1781501440000,-154.36637287,0.00014054,2]
[425103702,1781501440000,-3020.90607915,0.00014157,2]
[425103701,1781501440000,-1268.40051471,0.00014148,2]
[425103699,1781501440000,-250.0,0.00014112,2]
[425103700,1781501440000,-239.93360873,0.00014133,7]
[425103704,1781501440000,-9728.00217069,0.00014185,2]
[425103714,1781501440000,-999.99,0.00014504,2]
[425103703,1781501440000,-3686.22351229,0.00014185,2]
[425103705,1781501440000,-17161.34892604,0.00014185,2]
[425103706,1781501440000,-250.0636334,0.0001425,2]
[425103709,1781501440000,-336.01,0.00014438,2]
[425103725,1781501440000,-151.32,0.0001463,2]
[425103710,1781501440000,-3020.90607915,0.00014454,2]
[425103707,1781501440000,-3020.90607915,0.00014305,2]
[425103726,1781501440000,-25672.3516405,0.00014685,2]
[425103716,1781501440000,-6979.61,0.00014504,2]
[425103717,1781501440000,-4999.99,0.00014504,2]
[425103718,1781501440000,-9999.99,0.00014504,2]
[425103719,1781501440000,-299.99,0.00014504,2]
[425103711,1781501440000,-166.2465461,0.00014477,2]
[425103713,1781501440000,-7171.66,0.00014504,2]
[425103712,1781501440000,-250.0636334,0.000145,2]
[425103708,1781501440000,-1268.40051471,0.00014336,2]
[425103715,1781501440000,-2136.44,0.00014504,2]
[425103754,1781501441000,-21104.32943402,0.00014985,2]
[425103747,1781501441000,-1268.40051471,0.000149,2]
[425103749,1781501441000,-556315.3316849,0.00014966,2]
[425103748,1781501441000,-1100.9612618,0.00014966,2]
[425103750,1781501441000,-4794.7638311,0.00014968,2]
[425103752,1781501441000,-163.25776194,0.00014985,2]
[425103753,1781501441000,-274888.14486706,0.00014985,2]
[425103756,1781501441000,-758439.24466676,0.00014985,2]
[425103751,1781501441000,-1711.66983,0.00014969,2]
[425103759,1781501441000,-21458.0279784,0.00014988,2]
[425103755,1781501441000,-5664.88701546,0.00014985,2]
[425103762,1781501441000,-151.0,0.00014997,2]
[425103763,1781501441000,-3000.0,0.00014999,2]
[425103764,1781501441000,-300.0,0.00014999,2]
[425103765,1781501441000,-902515.21438229,0.00015,2]
[425103761,1781501441000,-151.0,0.00014997,2]